bitfinex-derivatives/quotes_ETHF0:USTF0_20250730
["timestamp","ask_amount","ask_price","bid_price","bid_amount"]
[1753834946910,0.5236,3776.6,3776.3,0.52969]
[1753834947118,63.2865,3776.5,3776.4,0.6855]
[1753834947312,64.3125,3776.5,3776.4,1.1603]
[1753834947902,65.06582534,3776.5,3776.4,1.1603]
[1753834948112,65.05882534,3776.5,3776.4,1.1603]
[1753834948313,22.54832534,3776.5,3776.4,1.6773]
[1753834948614,0.75332534,3776.5,3776.4,1.6773]
[1753834948813,22.54132534,3776.5,3776.4,1.6773]
[1753834949412,22.53732534,3776.5,3776.4,1.6773]
[1753834949812,0.75332534,3776.5,3776.4,1.6773]
[1753834950013,0.93386749,3776.5,3776.4,7.8099]
[1753834950319,1.68719283,3776.5,3776.4,7.8099]
[1753834950512,22.19571841,3776.6,3776.5,1.72047]
[1753834950712,1.41741629,3776.9,3776.8,0.52962]
[1753834951011,2.8082,3776.6,3776.5,0.94077]
[1753834951211,1.2081,3776.5,3774.7,0.517]
[1753834951418,21.782,3776.6,3776.5,0.52967]
[1753834951717,21.782,3776.6,3776.5,1.58537]
[1753834952310,1.40063359,3776.8,3776.6,0.5968]
[1753834952612,1.40063359,3776.8,3776.7,1.0557]
[1753834952817,4.20883359,3776.8,3776.7,1.0557]
[1753834953116,4.20883359,3776.8,3776.7,0.5387]
[1753834953418,2.8082,3776.8,3776.7,0.5387]
[1753834953613,2.2846,3776.6,3776.5,0.3313]
[1753834953818,24.5922,3776.6,3776.5,0.3313]
[1753834954218,25.9940805,3776.6,3776.5,0.3313]
[1753834954413,66.7940805,3776.6,3776.5,0.3313]
[1753834954611,66.7940805,3776.6,3776.5,0.4111]
[1753834954810,66.2704805,3776.6,3776.4,0.52968]
[1753834955013,0.52974,3776.0,3775.4,0.517]
[1753834955220,24.5882,3775.9,3775.8,0.3313]
[1753834955714,1.1349,3775.6,3774.6,0.52801892]
[1753834955922,0.52984,3775.3,3774.6,0.01101892]
[1753834956214,1.6373,3774.9,3774.8,1.1267]
[1753834956414,23.4895,3774.9,3774.8,0.0798]
[1753834956914,41.4845,3775.2,3775.0,0.5968]
[1753834957221,0.5024,3775.4,3775.2,0.52984]
[1753834957520,1.026,3775.4,3775.3,0.5968]
[1753834957914,22.9649,3775.4,3775.3,0.5968]
[1753834958216,22.4625,3775.4,3775.3,0.5968]
[1753834958521,0.6845,3775.4,3775.3,0.5968]
[1753834958819,24.01832,3775.4,3775.3,0.5968]
[1753834959214,2.24032,3775.4,3775.3,0.5968]
[1753834959414,24.00932,3775.4,3775.3,0.5968]
[1753834960023,24.65662,3775.4,3775.3,0.9281]
[1753834960211,25.10702,3775.4,3774.6,0.01101892]
[1753834960417,25.10702,3775.4,3775.3,0.4111]
[1753834960612,23.8927,3775.4,3775.3,1.0557]
[1753834960817,2.8082,3775.4,3775.3,1.0557]
[1753834961119,24.5682,3775.4,3775.3,1.0557]
[1753834961823,24.5582,3775.4,3775.3,1.0557]
[1753834963819,2.8082,3775.4,3775.3,1.1075]
[1753834964013,24.5452,3775.4,3775.3,1.1075]
[1753834964214,24.5315,3775.4,3775.3,0.5387]
[1753834964416,24.5315,3775.4,3775.3,0.3313]
[1753834965320,0.6757,3775.0,3774.9,1.05609]
[1753834965624,23.4022,3775.0,3774.9,1.67359]
[1753834965823,24.5234,3775.0,3774.9,1.67359]
[1753834966119,24.0337,3775.0,3774.9,1.67359]
[1753834966320,23.5309,3775.0,3774.9,1.67359]
[1753834966528,21.734,3775.0,3774.9,1.67359]
[1753834967723,22.39,3775.0,3774.9,1.67359]
[1753834968814,0.8092,3774.8,3774.7,5.274]
[1753834969018,2.7894,3774.8,3774.7,6.2711]
[1753834969223,2.7894,3774.8,3774.7,6.85282]
[1753834969424,21.734,3775.0,3774.9,0.5063]
[1753834969425,22.8552,3775.0,3774.9,0.5063]
[1753834969624,22.8552,3775.0,3774.9,1.1437]
[1753834969828,24.0337,3775.0,3774.9,1.1437]
[1753834970121,3.31932,3774.7,3774.6,0.01101892]
[1753834970521,1.67093,3773.9,3773.8,0.29088622]
[1753834970715,3.31943,3773.9,3773.8,0.61368622]
[1753834970921,3.31943,3773.9,3773.8,0.19608622]
[1753834971126,3.31943,3773.9,3773.8,0.51888622]
[1753834971428,3.31943,3773.9,3773.8,1.36848622]
[1753834971627,2.7894,3773.9,3773.8,1.36848622]
[1753834972122,0.656,3774.2,3774.1,1.1724]
[1753834972323,1.1409,3774.7,3774.6,0.524]
[1753834972521,1.1409,3774.7,3774.6,1.1724]
[1753834972522,42.9334,3774.7,3774.6,1.1724]
[1753834972721,42.9334,3774.7,3774.6,0.6298]
[1753834973019,1.1409,3774.4,3774.3,0.3228]
[1753834973225,2.7894,3774.4,3774.3,0.3228]
[1753834974127,2.7894,3774.4,3774.3,0.524]
[1753834974331,2.7894,3774.4,3774.3,1.1724]
[1753834974928,2.7894,3774.4,3774.3,0.4286]
[1753834975430,2.2997,3774.4,3774.3,1.1724]
[1753834975726,2.7894,3774.4,3774.3,1.1724]
[1753834976326,2.7894,3774.4,3774.3,1.70237]
[1753834976527,2.7894,3774.4,3774.3,0.52997]
[1753834976730,2.7894,3774.4,3774.3,0.85277]
[1753834979832,2.7894,3774.4,3774.3,1.70237]
[1753834980227,0.656,3775.1,3774.3,0.52997]
[1753834980528,1.7969,3775.1,3775.0,1.70228]
[1753834980729,0.3317,3775.4,3775.3,1.68233]
[1753834980927,0.9877,3775.4,3775.3,1.70223]
[1753834981433,2.7894,3775.4,3775.3,0.3228]
[1753834981628,1.1409,3775.4,3775.2,0.52984]
[1753834981931,2.1137,3775.2,3775.1,0.3228]
[1753834982127,2.7894,3775.2,3775.1,0.3228]
[1753834982428,1.6485,3775.1,3775.0,0.85268]
[1753834982632,2.7894,3775.1,3775.0,0.85268]
[1753834983022,2.7894,3775.1,3775.0,0.95848]
[1753834983230,2.7894,3775.1,3775.0,1.70228]
[1753834983434,0.656,3775.1,3775.0,1.70228]
[1753834983631,2.2997,3775.4,3775.3,1.15963]
[1753834983832,2.7894,3775.4,3775.3,1.70223]
[1753834984030,21.672,3775.6,3775.5,0.52981]
[1753834984335,21.672,3775.6,3775.3,0.6484]
[1753834984336,2.7894,3775.8,3775.7,1.70218]
[1753834985232,22.331,3776.4,3775.7,0.6484]
[1753834985540,22.331,3776.4,3775.8,1.1525]
[1753834985541,1.6306,3775.9,3775.8,1.1525]
[1753834985835,1.6306,3775.9,3775.8,1.70216]
[1753834986139,2.7894,3775.9,3775.8,0.3228]
[1753834989134,1.1409,3775.7,3775.6,0.52979]
[1753834989436,2.7894,3775.7,3775.6,0.52979]
[1753834989627,2.7894,3775.7,3775.6,0.85259]
[1753834990438,2.7894,3775.7,3775.6,0.95839]
[1753834996144,2.7894,3775.7,3775.6,0.52979]
[1753834997147,2.7894,3775.7,3775.6,0.86479]
[1753834997348,2.7894,3775.7,3775.6,1.59639]
[1753834998848,2.7894,3775.7,3775.6,1.09259]
[1753835001351,2.7699,3775.2,3775.1,0.52986]
[1753835001542,1.1396,3775.2,3775.1,0.86486]
[1753835001738,1.1396,3775.2,3775.1,0.95006]
[1753835001945,3.2078,3775.7,3774.9,3.2078]
[1753835001946,5.9777,3775.7,3775.6,1.00119]
[1753835002144,0.4711,3776.0,3775.6,1.59019]
[1753835002346,3.2078,3776.9,3775.9,0.5566]
[1753835002551,5.9777,3776.9,3776.8,0.86462]
[1753835002848,3.2078,3776.9,3776.8,0.86462]
[1753835003046,0.018,3777.3,3777.2,0.52957]
[1753835003240,2.7879,3777.3,3777.2,1.58997]
[1753835003545,0.018,3777.3,3777.2,1.58997]
[1753835003745,2.7879,3777.3,3777.2,0.94977]
[1753835004054,2.7879,3777.3,3777.2,0.86457]
[1753835004653,1.1576,3777.3,3777.1,0.52957]
[1753835004951,2.7699,3777.2,3777.1,0.86457]
[1753835005146,2.7699,3777.2,3777.1,0.94977]
[1753835006042,0.6707,3777.3,3777.1,1.00097]
[1753835006340,0.6707,3777.3,3777.2,1.0604]
[1753835006541,1.8103,3777.3,3777.2,1.0604]
[1753835006853,1.1576,3777.3,3777.1,0.52957]
[1753835007049,2.7699,3777.2,3777.1,0.52957]
[1753835007848,2.7699,3777.2,3776.8,0.0852]
[1753835007849,2.7699,3777.2,3776.8,0.61482]
[1753835008043,1.1396,3776.9,3776.7,5.274]
[1753835008351,1.66921,3776.9,3776.7,5.274]
[1753835008554,2.7699,3776.8,3776.7,5.274]
[1753835008760,2.7699,3776.7,3776.6,3.2078]
[1753835008956,2.7699,3776.5,3776.4,0.86467]
[1753835010256,1.1396,3776.5,3776.1,3.82271]
[1753835010452,2.7699,3776.2,3776.1,4.15772]
[1753835010859,2.7699,3776.2,3776.1,3.2078]
[1753835011358,0.457,3775.6,3775.5,3.82281]
[1753835011561,2.7699,3775.6,3775.5,3.2078]
[1753835014263,2.7699,3775.5,3775.4,1.3243]
[1753835015165,2.7699,3775.5,3775.4,1.6593]
[1753835015363,2.7699,3775.5,3775.4,1.3243]
[1753835016165,2.7699,3775.5,3775.4,1.6593]
[1753835016364,2.7699,3775.5,3775.4,0.335]
[1753835017468,2.7699,3775.5,3775.4,0.86482]
[1753835018166,1.1396,3775.9,3775.8,1.55746]
[1753835018667,2.7699,3775.9,3775.8,1.55746]
[1753835019361,1.4448,3775.9,3775.8,1.55746]
[1753835019566,0.3351,3775.9,3775.8,4.76526]
[1753835019766,0.9878,3775.9,3775.8,4.76526]
[1753835019967,1.4448,3775.9,3775.8,4.76526]
[1753835020168,1.7923,3775.9,3775.8,4.76526]
[1753835020365,2.2988,3775.9,3775.8,4.76526]
[1753835020667,21.576,3776.2,3776.1,0.52972]
[1753835020870,5.325,3776.4,3776.3,1.05359]
[1753835021169,27.5467,3776.4,3776.2,0.5297]
[1753835021364,66.7164,3776.4,3776.2,0.5297]
[1753835021573,1.1396,3776.3,3776.2,0.86471]
[1753835022268,2.7699,3776.3,3776.2,0.93741]
[1753835023760,2.7699,3776.3,3776.2,0.52971]
[1753835023962,2.7699,3776.3,3776.1,0.52972]
[1753835024163,2.737,3776.2,3776.1,0.52972]
[1753835025571,2.737,3776.2,3776.1,0.87142]
[1753835029271,2.737,3775.8,3775.7,1.85398]
[1753835029765,2.737,3775.8,3775.7,0.87148]
[1753835030465,2.737,3775.8,3775.7,0.94118]
[1753835031270,0.79,3775.5,3775.4,3.2078]
[1753835031469,24.265,3775.5,3775.4,3.2078]
[1753835031772,24.265,3775.5,3775.4,3.5495]
[1753835032173,24.265,3775.5,3775.4,3.6192]
[1753835032470,24.265,3775.5,3775.4,0.94121]
[1753835033964,21.528,3775.5,3775.4,1.51761]
[1753835034567,2.737,3776.2,3776.1,0.94112]
[1753835034873,24.246,3776.2,3776.1,0.94112]
[1753835036668,24.246,3776.2,3776.1,0.4114]
[1753835036868,24.77571,3776.2,3776.1,0.4114]
[1753835037275,24.77571,3776.2,3776.1,0.3417]
[1753835037671,0.52974,3776.0,3775.8,0.0697]
[1753835037971,1.64114,3776.0,3775.9,0.3417]
[1753835038172,23.13914,3776.0,3775.9,0.3417]
[1753835038473,24.76474,3776.0,3775.9,0.3417]
[1753835039075,24.235,3776.0,3775.9,0.3417]
[1753835039574,24.235,3776.0,3775.9,0.4114]
[1753835040074,24.235,3776.0,3775.9,0.9878]
[1753835040569,24.76474,3776.0,3775.9,0.9878]
[1753835040763,24.76474,3776.0,3775.9,0.5229]
[1753835040966,24.235,3776.0,3775.9,1.51755]
[1753835041776,24.235,3776.0,3775.9,0.9878]
[1753835050284,24.235,3776.0,3775.9,0.5229]
[1753835050476,24.235,3776.0,3775.3,2.64886]
[1753835050477,0.9583,3775.5,3775.3,1.3243]
[1753835050783,22.9223,3775.4,3775.3,2.3121]
[1753835052484,0.6673,3775.7,3775.6,0.9878]
[1753835052778,22.6283,3775.7,3775.6,0.9878]
[1753835052984,24.202,3775.7,3775.6,0.9878]
[1753835054581,2.737,3775.7,3775.6,0.9878]
[1753835054785,24.2,3775.7,3775.6,0.9878]
[1753835055682,2.737,3775.7,3775.6,0.9878]
[1753835055980,1.9533,3775.7,3775.6,0.9878]
[1753835056182,1.9533,3775.7,3775.6,1.51759]
[1753835057476,2.431,3775.7,3775.6,1.51759]
[1753835058187,2.431,3775.7,3775.6,2.84179]
[1753835058379,2.7345,3775.7,3775.6,2.84179]
[1753835061586,0.52972,3776.1,3775.6,2.84179]
[1753835061587,3.2078,3776.3,3775.6,2.312]
[1753835061786,1.16212,3776.9,3776.1,3.2078]
[1753835062085,1.55422,3776.9,3776.8,0.3115]
[1753835062293,1.55422,3776.9,3776.0,3.73753]
[1753835062294,1.0246,3776.2,3776.0,3.73753]
[1753835062584,1.23994,3776.0,3775.9,5.274]
[1753835062789,1.6571,3775.7,3775.6,5.06178]
[1753835062990,2.5922,3775.7,3775.6,5.37328]
[1753835063179,3.12198,3775.7,3775.6,4.532]
[1753835063383,3.12198,3775.7,3775.6,1.3242]
[1753835063384,8.4186603,3775.7,3775.6,1.3242]
[1753835063679,1.0246,3775.1,3775.0,3.30570593]
[1753835063887,24.0412,3775.1,3774.8,0.5819]
[1753835064086,2.5922,3775.0,3774.8,0.9919]
[1753835064286,1.0246,3775.0,3774.9,0.3115]
[1753835064491,1.0246,3775.0,3774.9,1.1014]
[1753835064883,2.5922,3775.0,3774.9,1.1014]
[1753835065088,2.5922,3775.0,3774.9,1.606]
[1753835066985,2.2887,3774.9,3774.8,0.5299]
[1753835067187,2.5922,3774.9,3774.8,1.6313]
[1753835067391,21.449,3775.1,3775.0,2.13588]
[1753835067591,21.449,3775.1,3775.0,5.34368]
[1753835068394,22.0815,3775.1,3775.0,5.34368]
[1753835068789,0.6325,3775.1,3775.0,5.34368]
[1753835068991,1.8001,3775.4,3775.3,1.16923]
[1753835069192,23.5375,3775.4,3775.3,2.13583]
[1753835069498,24.0152,3775.4,3775.3,2.13583]
[1753835070198,22.4476,3775.4,3775.2,0.884]
[1753835070399,3.12203,3775.3,3775.2,0.884]
[1753835071096,2.5922,3775.3,3775.2,2.49]
[1753835071396,24.0142,3775.3,3775.2,2.49]
[1753835072097,24.0142,3775.3,3775.2,1.5234]
[1753835072498,24.0142,3775.3,3775.2,1.9854]
[1753835073396,24.0142,3775.3,3775.2,0.884]
[1753835073598,0.6325,3775.2,3775.1,0.52986]
[1753835073900,2.5922,3775.2,3775.1,0.52986]
[1753835074698,2.5922,3775.2,3775.1,0.84136]
[1753835074998,2.1145,3775.2,3775.1,1.63126]
[1753835075200,0.6325,3775.2,3775.1,1.16926]
[1753835075602,0.6325,3775.5,3775.4,0.52982]
[1753835075903,22.0515,3775.7,3775.6,2.13579]
[1753835076097,2.1145,3776.0,3775.9,1.16915]
[1753835076304,24.0172,3776.0,3775.9,2.13575]
[1753835076698,24.0172,3776.0,3775.9,1.606]
[1753835076996,24.0172,3776.0,3775.9,1.1014]
[1753835077196,24.0172,3776.0,3775.9,0.6394]
[1753835077396,23.2251,3776.0,3775.9,0.3115]
[1753835077604,24.0172,3776.0,3775.9,0.3115]
[1753835078196,24.54694,3776.0,3775.9,0.3115]
[1753835078397,24.0172,3776.0,3775.9,0.3115]
[1753835080097,24.0172,3776.0,3775.9,0.7735]
[1753835080903,24.0172,3776.0,3775.9,1.1014]
[1753835081405,24.0172,3776.0,3775.9,1.606]
[1753835081603,1.0392,3776.0,3775.9,1.606]
[1753835081802,1.0392,3776.0,3775.8,1.41446]
[1753835081803,4.247,3776.2,3776.1,1.606]
[1753835082006,4.5505,3777.2,3777.1,0.52958]
[1753835082306,67.0114,3777.2,3777.1,2.13558]
[1753835082503,22.5259,3777.2,3777.1,2.13558]
[1753835082704,23.2361,3777.2,3777.1,2.13558]
[1753835082896,24.0282,3777.2,3777.1,2.13558]
[1753835083101,64.8282,3777.2,3777.1,2.13558]
[1753835083302,64.8282,3777.2,3777.1,1.63098]
[1753835083504,1.0246,3777.0,3776.9,4.0489]
[1753835083804,2.5608,3777.0,3776.9,4.8388]
[1753835084301,2.5608,3777.0,3776.9,1.631]
[1753835085109,2.5607,3777.0,3776.9,1.631]
[1753835085508,0.4573,3777.6,3777.2,1.1431]
[1753835085702,0.4982,3777.7,3777.2,1.6042]
[1753835086007,21.455,3777.3,3777.2,1.6042]
[1753835086608,22.455,3777.3,3777.2,1.6042]
[1753835086909,0.6191,3777.3,3777.2,1.6042]
[1753835087109,0.018,3777.3,3777.2,1.6042]
[1753835087612,0.6191,3777.3,3777.2,1.6042]
[1753835087811,0.018,3777.3,3777.2,1.6042]
[1753835088511,0.018,3777.3,3777.2,6.89905736]
[1753835089110,21.426,3777.7,3777.6,0.3296]
[1753835089415,3.2078,3777.8,3777.7,0.9569]
[1753835089711,5.2819,3777.8,3777.7,1.6042]
[1753835089912,2.0741,3777.8,3777.7,1.6042]
[1753835090515,2.5723,3777.8,3777.7,1.6042]
[1753835090711,2.5723,3777.8,3777.7,1.1431]
[1753835093715,1.5139,3777.5,3777.4,0.3177]
[1753835093909,1.5139,3777.5,3777.4,0.52953]
[1753835094111,0.4573,3777.4,3777.3,0.52955]
[1753835094315,2.5723,3777.4,3777.3,0.52955]
[1753835094914,2.5723,3777.4,3777.3,1.17685]
[1753835095118,2.5723,3777.4,3777.3,1.67265]
[1753835096518,1.0157,3777.4,3777.1,3.2078]
[1753835096724,2.5723,3777.2,3777.1,3.2078]
[1753835097221,2.5723,3777.2,3777.1,4.0213]
[1753835097421,2.5723,3777.2,3777.1,4.3509]
[1753835099017,2.5723,3777.2,3777.1,4.812]
[1753835099420,2.5723,3777.2,3777.1,3.5255]
[1753835100021,2.5723,3777.2,3777.1,3.2078]
[1753835100223,1.0157,3776.9,3776.8,0.52961]
[1753835100431,2.5723,3776.8,3776.7,3.73743]
[1753835100924,2.5723,3776.8,3776.7,3.2078]
[1753835101225,2.5723,3776.8,3775.7,1.32442]
[1753835101226,1.0157,3776.3,3776.2,0.8474]
[1753835101421,0.6011,3776.3,3776.2,2.1339]
[1753835102724,40.8,3776.7,3776.5,1.02547]
[1753835102928,1.0,3776.7,3776.6,1.6042]
[1753835103129,21.398,3776.9,3776.8,1.63802]
[1753835103428,22.398,3776.9,3776.8,1.63802]
[1753835103731,0.4982,3776.8,3776.7,4.05513]
[1753835104031,2.5723,3776.8,3776.7,4.05513]
[1753835104230,2.5723,3776.8,3776.7,4.55093]
[1753835104529,2.5723,3776.8,3776.7,4.88053]
[1753835105320,21.398,3777.3,3777.1,0.52958]
[1753835105527,2.5723,3777.2,3777.1,0.84728]
[1753835105829,23.9663,3777.2,3777.1,2.13378]
[1753835106031,2.5723,3777.2,3777.1,2.13378]
[1753835106327,2.5723,3777.6,3777.5,1.67262]
[1753835106528,23.9673,3777.6,3777.5,1.67262]
[1753835106834,2.2713,3777.1,3777.0,1.35499]
[1753835107030,2.5723,3777.1,3777.0,2.13379]
[1753835107434,1.7583,3777.1,3777.0,2.13379]
[1753835107636,2.0741,3777.1,3777.0,2.13379]
[1753835107934,2.5723,3777.1,3777.0,2.13379]
[1753835109336,2.5723,3777.1,3777.0,1.67269]
[1753835109533,2.5723,3777.1,3777.0,0.52959]
[1753835109733,2.5723,3777.1,3777.0,0.84729]
[1753835110027,0.6011,3777.4,3777.3,0.52955]
[1753835110234,2.5723,3777.4,3777.3,2.13375]
[1753835112531,2.5723,3777.4,3777.3,1.6042]
[1753835112736,2.5723,3777.4,3777.3,1.1431]
[1753835112935,2.5723,3777.4,3777.3,0.6473]
[1753835113340,2.5723,3777.4,3777.3,0.3177]
[1753835113527,2.5723,3777.4,3777.1,3.73738]
[1753835113834,1.033,3776.5,3776.2,4.0947]
[1753835114039,2.6001,3776.4,3776.3,0.83699]
[1753835114230,2.6001,3776.4,3776.3,1.15449]
[1753835114436,2.6001,3776.4,3776.3,1.62389]
[1753835114639,1.6646,3776.4,3776.3,2.08649]
[1753835114836,2.6001,3776.4,3776.3,1.62389]
[1753835115140,2.6001,3776.4,3776.3,1.0942]
[1753835115339,2.6001,3776.4,3776.2,0.8869]
[1753835115541,2.6001,3776.3,3776.2,0.8869]
[1753835116339,24.0511,3776.3,3776.2,0.8869]
[1753835117942,24.0511,3776.3,3776.2,1.1942]
[1753835118244,24.0511,3776.3,3776.2,1.9811]
[1753835118544,24.0511,3776.3,3776.2,2.4437]
[1753835119037,23.5796,3776.3,3776.2,2.4437]
[1753835119545,24.0511,3776.3,3776.2,1.9811]
[1753835120242,24.58079,3776.3,3776.2,1.5117]
[1753835120443,24.0511,3776.3,3776.2,1.5117]
[1753835120742,24.0511,3776.3,3776.2,2.51081]
[1753835121448,21.451,3776.3,3776.2,2.97341]
[1753835121841,24.0511,3776.3,3776.2,2.97341]
[1753835122038,24.0511,3776.3,3776.2,2.51081]
[1753835122843,24.0511,3776.3,3776.2,0.8869]
[1753835125445,29.0511,3776.3,3776.2,0.8869]
[1753835126349,24.0511,3776.3,3776.2,0.8869]
[1753835126740,24.0511,3776.3,3776.2,1.1942]
[1753835127148,3.2078,3776.9,3776.2,1.5117]
[1753835127346,0.4261,3777.3,3777.2,0.7869]
[1753835127649,22.1933,3777.3,3777.2,1.5568]
[1753835128048,22.8249,3777.3,3777.2,1.5568]
[1753835128445,23.2889,3777.3,3777.2,1.5568]
[1753835129752,23.5996,3777.3,3777.2,1.5568]
[1753835130049,24.0711,3777.3,3776.6,3.2078]
[1753835130248,1.033,3776.8,3776.7,0.7767]
[1753835130549,2.6001,3776.8,3776.7,0.3073]
[1753835131053,1.13654,3776.7,3776.6,3.2078]
[1753835131247,24.60174,3776.7,3776.6,3.2078]
[1753835131445,23.03464,3776.7,3776.2,1.4166]
[1753835131649,1.033,3776.3,3776.2,2.1933]
[1753835131851,24.0691,3776.3,3776.2,2.5108]
[1753835132944,0.464,3776.9,3776.7,0.932]
[1753835133144,22.1066,3776.8,3776.7,1.5568]
[1753835133553,23.6036,3776.8,3776.7,1.5568]
[1753835133753,23.6036,3776.8,3776.7,2.08644]
[1753835134051,24.0751,3776.8,3776.7,2.08644]
[1753835135248,24.0751,3776.8,3775.9,3.2078]
[1753835135249,0.4261,3776.5,3775.9,3.2078]
[1753835135454,21.475,3776.8,3775.9,3.2078]
[1753835135455,2.6001,3776.4,3776.3,4.04479]
[1753835135656,24.0631,3776.4,3776.3,4.04479]
[1753835135847,24.0631,3776.4,3776.3,4.83169]
[1753835136356,24.0631,3776.4,3776.3,4.302]
[1753835136555,24.0631,3776.4,3776.3,3.5151]
[1753835136854,24.0631,3776.4,3776.3,4.4053]
[1753835138056,0.2962,3777.1,3777.0,0.3073]
[1753835138356,24.59168,3777.1,3777.0,0.3073]
[1753835138653,24.59168,3777.1,3776.8,0.4694]
[1753835138850,0.9355,3776.9,3776.4,0.4694]
[1753835139052,2.6001,3776.5,3776.4,1.0942]
[1753835139248,2.6001,3776.5,3776.3,9.92380926]
[1753835139448,2.6001,3776.4,3776.3,4.62769]
[1753835141056,2.6001,3776.4,3776.3,5.25249]
[1753835141256,2.6001,3776.4,3776.3,5.72189]
[1753835141457,2.6001,3776.4,3776.3,6.18449]
[1753835141957,2.6001,3776.4,3776.3,2.97669]
[1753835142658,2.1286,3776.4,3776.3,2.97669]
[1753835144560,2.5934,3776.4,3776.3,2.97669]
[1753835146858,0.3059,3776.9,3776.8,0.5863]
[1753835147059,22.4276,3776.9,3776.8,1.56412]
[1753835147360,22.8924,3776.9,3776.8,2.01382]
[1753835147555,23.9977,3776.9,3776.8,2.01382]
[1753835147756,2.0979,3776.9,3776.8,2.01382]
[1753835147960,2.0979,3776.9,3776.3,6.1642]
[1753835147961,3.2078,3777.1,3777.0,1.11589]
[1753835148162,25.278,3777.1,3777.0,2.01379]
[1753835148361,3.2078,3777.1,3777.0,2.01379]
[1753835148661,1.6328,3777.5,3777.4,1.11584]
[1753835148862,23.5269,3777.5,3777.4,2.01374]
[1753835149957,23.0618,3777.5,3777.4,2.01374]
[1753835150261,23.5269,3777.5,3777.4,2.01374]
[1753835150854,23.9917,3777.5,3777.4,2.01374]
[1753835151055,23.9917,3777.5,3777.4,1.56404]
[1753835153763,23.9917,3777.5,3777.4,2.01374]
[1753835153964,23.9917,3777.5,3777.4,1.4842]
[1753835154164,23.9917,3777.5,3777.4,0.5863]
[1753835154465,23.9917,3777.5,3777.4,0.2955]
[1753835154659,23.9917,3777.5,3777.4,0.82504]
[1753835155061,23.9917,3777.5,3777.1,0.4482]
[1753835155062,2.5627,3777.1,3776.9,5.7222]
[1753835155363,2.5627,3777.0,3776.9,5.80361]
[1753835156466,2.5627,3777.0,3776.9,7.28781]
[1753835156765,1.0368,3777.0,3776.9,7.28781]
[1753835158362,21.41,3777.3,3777.2,0.5863]
[1753835158664,23.202,3777.3,3777.2,1.4842]
[1753835159468,23.5079,3777.3,3777.2,1.4842]
[1753835159966,0.596,3777.8,3777.7,2.0137]
[1753835160166,22.6492,3777.8,3777.7,2.0137]
[1753835160468,22.6492,3777.8,3777.7,2.9058]
[1753835160869,23.0458,3777.8,3777.7,2.9058]
[1753835161465,23.5109,3777.8,3777.7,2.9058]
[1753835162868,2.5627,3779.1,3779.0,0.52931]
[1753835163065,2.5627,3779.1,3779.0,1.56381]
[1753835163461,0.9299,3779.0,3778.8,3.2078]
[1753835163664,2.5627,3778.9,3778.8,3.2078]
[1753835165068,2.5627,3778.9,3778.8,3.73714]
[1753835165366,2.5627,3778.9,3778.8,3.2078]
[1753835165569,0.9926,3778.7,3778.6,0.52936]
[1753835165770,2.5627,3778.7,3778.6,0.52936]
[1753835167075,2.5627,3778.7,3778.6,1.56386]
[1753835169275,2.5627,3778.7,3778.6,1.0345]
[1753835169474,2.5627,3778.4,3778.3,1.56391]
[1753835169773,2.5627,3778.4,3778.3,6.85680561]
[1753835172174,2.5627,3778.4,3778.3,7.30650561]
[1753835172374,22.4166,3778.8,3778.7,0.82486]
[1753835172570,22.8814,3778.8,3778.7,1.56386]
[1753835172771,22.8814,3778.8,3778.7,1.0345]
[1753835173077,23.9867,3778.8,3778.7,0.2955]
[1753835175171,0.5764,3778.7,3778.5,0.52938]
[1753835175369,1.7609,3778.5,3778.4,0.4482]
[1753835175566,23.1559,3778.5,3778.4,0.4482]
[1753835176468,2.0545,3777.9,3777.8,3.8005]
[1753835176682,2.0545,3777.9,3777.8,4.02208]
[1753835177275,2.0545,3777.9,3777.8,4.32998]
[1753835177665,2.0545,3777.9,3777.8,4.76128]
[1753835178066,2.5119,3777.9,3777.8,5.18938]
[1753835178479,2.5119,3777.9,3777.8,6.08308]
[1753835178677,2.5119,3777.9,3777.8,5.65178]
[1753835178873,2.5119,3777.9,3777.8,5.1223]
[1753835179176,2.5119,3777.9,3777.8,4.1015]
[1753835179177,3.04137,3777.9,3777.8,4.1015]
[1753835180071,24.43037,3777.9,3777.8,0.8937]
[1753835181080,65.23037,3777.9,3777.8,0.8937]
[1753835181876,0.52957,3777.2,3777.0,3.2078]
[1753835182068,2.5119,3777.1,3777.0,3.4926]
[1753835182475,2.5119,3777.1,3777.0,3.9207]
[1753835182875,2.5119,3777.1,3777.0,4.2286]
[1753835183271,2.5119,3777.1,3777.0,4.6137]
[1753835183581,62.19,3777.3,3777.2,2.1241]
[1753835183982,21.8612,3777.3,3777.2,2.1241]
[1753835184182,22.4376,3777.3,3777.2,2.1241]
[1753835185276,22.7383,3777.3,3777.2,2.1241]
[1753835185783,22.1619,3777.3,3777.2,1.4521]
[1753835186884,22.4555,3777.3,3777.2,1.4521]
[1753835187079,24.2368,3777.3,3776.5,3.2078]
[1753835187286,0.5943,3776.3,3776.2,0.2848]
[1753835187483,1.0655,3776.3,3776.2,6.31565736]
[1753835187785,1.0655,3776.3,3776.2,1.4521]
[1753835187985,1.0655,3776.3,3776.2,6.74744803]
[1753835188483,1.5229,3776.3,3776.2,1.0208]